Cogmind - Beta 10.2 @@@ ROGUE MODE // 2022.03.10 @ 01:31:29 Player: Yanche Result: Destroyed by D-53 Grenadier with Mini Grenade Launcher Performance ------------- Evolutions (0) 0 Regions Visited (4) 800 Robots Destroyed (18) 90 Value Destroyed (333) 333 Prototype IDs (0) 0 Alien Tech Used (0) 0 Bonus (335) 335 TOTAL SCORE: 1558 Bonus ------- Follower Combat Kills 49 Aligned with FarCom 300 Friendly Fire -14 Cogmind --------- Core Integrity 0/250 Matter 237/300 Energy 89/100 System Corruption 0% Temperature Cool (0) Movement Rolling (110) Ox1 Location -9/Mines Parts ------- > --- POWER (1) -------- (None) > --- PROPULSION (2) --- Compact Wheel Compact Wheel > --- UTILITY (2) ------ High-capacity Storage Unit > --- WEAPON (2) ------- Assault Rifle > --- INVENTORY (12) --- Light Nuclear Core Wheel Improved Heat Sink Visual Processing Unit Signal Interpreter Seismic Analyzer Targeting Computer Propulsion Shielding Rocket Launcher Peak State ------------ > --- POWER ------------ Ion Engine > --- PROPULSION ------- Wheel Compact Wheel > --- UTILITY ---------- Improved Heat Sink Small Storage Unit > --- WEAPON ----------- Small Laser Assault Rifle > --- INVENTORY -------- Light Ion Engine Wheel Medium Laser Small Laser [Rating: 9] Favorites ----------- Power Light Ion Engine Engine Light Ion Engine Propulsion Compact Wheel Wheel Compact Wheel Utility Sensor Array Device Sensor Array Storage High-capacity Storage Unit Weapon Assault Rifle Energy Gun Small Laser Energy Cannon Beam Cannon Ballistic Gun Assault Rifle Launcher Grenade Launcher Build | -11 -10 -10 -10 -9 ------- Run | Scr Mat Min Exi Min Slots Evolved . | . . . . . Power . | . . . . . Propulsion . | . . . . . Utility . | . . . . . Weapon . | . . . . . Parts Attached 25 | 7 13 1 . 4 Power 3 | 1 2 . . . Engine 3 | 1 2 . . . Core . | . . . . . Reactor . | . . . . . Propulsion 6 | 2 4 . . . Treads . | . . . . . Leg . | . . . . . Wheel 6 | 2 4 . . . Hover . | . . . . . Flight . | . . . . . Utility 4 | 1 2 1 . . Device 2 | . 2 . . . Storage 2 | 1 . 1 . . Processor . | . . . . . Hackware . | . . . . . Protection . | . . . . . Artifact . | . . . . . Weapon 12 | 3 5 . . 4 Energy Gun 3 | 2 1 . . . Energy Cannon 2 | . 1 . . 1 Ballistic Gun 6 | 1 3 . . 2 Ballistic Cannon . | . . . . . Launcher 1 | . . . . 1 Special Weapon . | . . . . . Impact Weapon . | . . . . . Slashing Weapon . | . . . . . Piercing Weapon . | . . . . . Special Melee Weapon . | . . . . . Unidentified Prototypes . | . . . . . Parts Lost 11 | . 5 . . 6 Power 2 | . 1 . . 1 Propulsion 2 | . 2 . . . Utility 1 | . . . . 1 Weapon 6 | . 2 . . 4 Highest Loss Streak 6 | . 4 . . 6 Average Slot Usage (%) 98 | . 94 100 100 91 Engine 13 | . 13 14 14 12 Wheel 27 | . 26 28 28 28 Device 12 | . 10 14 14 10 Storage 14 | . 14 14 14 14 Energy Gun 3 | . 12 . . . Energy Cannon 10 | . 1 14 14 12 Ballistic Gun 13 | . 14 14 14 11 Naked Turns . | . . . . . Heaviest Build 41 | 12 13 41 41 41 Greatest Support 32 | 26 32 32 32 32 Greatest Overweight (x) 1 | . 1 1 1 1 Average Overweight (x) . | . . . 1 1 Largest Inventory Capacity 12 | 6 6 12 12 12 Average Capacity 10 | 5 6 11 12 12 Most Carried 12 | 2 6 12 12 12 Average Carried 9 | 1 4 10 11 11 Final Capacity 12 | 6 6 12 12 12 Final Carried 12 | 2 6 12 12 9 Class Distribution -------------------- 96% | Mutant 3% | Skirmisher Dominant Class ---------------- Mutant | -10/Materials Mutant | -10/Mines Mutant | -10/Exiles Skirmisher | -9/Mines Resources | -11 -10 -10 -10 -9 ----------- Run | Scr Mat Min Exi Min Matter Collected 524 | 189 290 45 . . Remotely . | . . . . . Salvage Created 474 | . 374 67 . 33 Parts 37 | . 27 5 . 5 Haulers Intercepted 1 | . 1 . . . Recyclers Shooed . | . . . . . Parts Field Recycled . | . . . . . Retrieved Matter . | . . . . . Parts Self-Destructed . | . . . . . Prevented . | . . . . . Kills | -11 -10 -10 -10 -9 ------- Run | Scr Mat Min Exi Min Combat Hostiles Destroyed 13 | . 10 2 . 1 Guns 10 | . 10 . . . Cannons 3 | . . 2 . 1 Classes Destroyed 7 | . 5 1 . 1 Worker 2 | . 2 . . . Tunneler 1 | . . 1 . . Hauler 1 | . 1 . . . Watcher 1 | . 1 . . . Swarmer 7 | . 6 1 . . Grunt 5 | . 4 1 . . Demolisher 1 | . . . . 1 Best Kill Streak 3 | . 3 1 . 1 Combat Bots Only 3 | . 3 1 . 1 Max Kills in Single Turn 1 | . 1 1 . 1 Gunslinging . | . . . . . Exploded . | . . . . . Melee . | . . . . . Uniques/NPCs Destroyed . | . . . . . Combat | -11 -10 -10 -10 -9 -------- Run | Scr Mat Min Exi Min Damage Taken 1176 | . 502 38 . 636 Core 260 | . 111 19 . 130 Absorbed by Shields . | . . . . . Core Remaining (%) 100 | 100 . . . . Volleys Fired 62 | . 46 7 . 9 Largest 2 | . 2 2 . 2 Hottest 120 | . 80 80 . 120 Shots Fired 119 | . 92 14 . 13 Gun 99 | . 86 7 . 6 Cannon 17 | . 6 7 . 4 Launcher 3 | . . . . 3 Special . | . . . . . Kinetic 59 | . 46 7 . 6 Thermal 57 | . 46 7 . 4 Explosive 3 | . . . . 3 Electromagnetic . | . . . . . Robot Hit Streak 10 | . 10 2 . 2 Robot Miss Streak 4 | . 4 3 . 3 Penetration Max . | . . . . . Secondary Targets 2 | . 2 . . . Max Gunslinging Chain 1 | . 1 . . . Shots Hit Robots 67 | . 57 4 . 6 Core Hits 31 | . 22 3 . 6 Critical Hits 1 | . . . . 1 Critical Kills . | . . . . . Critical Parts Destroyed 1 | . . . . 1 Melee Attacks . | . . . . . Impact . | . . . . . Slashing . | . . . . . Piercing . | . . . . . Sneak Attacks . | . . . . . Combat Hostiles . | . . . . . Follow-up Attacks . | . . . . . Damage Inflicted 880 | . 623 138 . 119 Guns 602 | . 536 24 . 42 Cannons 230 | . 87 90 . 53 Explosions 24 | . . . . 24 Melee . | . . . . . Ramming 24 | . . 24 . . Kinetic 326 | . 260 24 . 42 Thermal 506 | . 363 90 . 53 Explosive 24 | . . . . 24 Electromagnetic . | . . . . . Impact . | . . . . . Slashing . | . . . . . Piercing . | . . . . . Highest Corruption . | . . . . . Average Corruption . | . . . . . Corruption Purged . | . . . . . Overload Shots . | . . . . . Overflow Damage 9 | . 9 . . . Projectiles 9 | . 9 . . . Explosions . | . . . . . Melee . | . . . . . Knockbacks . | . . . . . Impact . | . . . . . Kinetic . | . . . . . Secondary . | . . . . . Self-Inflicted Damage 53 | . . 12 . 41 Shots 2 | . . . . 2 Rammed 1 | . . 1 . . Targets Rammed 1 | . . 1 . . Kicked . | . . . . . Crushed . | . . . . . Highest Temperature 120 | . 76 36 . 120 Average Temperature 27 | . 24 19 . 61 Received Heat Transfer 201 | . 195 6 . . Siege Activations . | . . . . . Robots Corrupted . | . . . . . Combat Hostiles . | . . . . . Parts Fried . | . . . . . Impact Corruptions . | . . . . . Robots Melted . | . . . . . Combat Hostiles . | . . . . . Parts Melted 1 | . 1 . . . Heat Transferred 1081 | . 785 185 . 111 Parts Sabotaged . | . . . . . Parts Stolen . | . . . . . Parts Stripped . | . . . . . Power Chain Reactions . | . . . . . Missiles Intercepted . | . . . . . Alert | -11 -10 -10 -10 -9 ------- Run | Scr Mat Min Exi Min Peak Influence 267 | . 267 86 . 31 Initial 46 | . . 46 . . Average 64 | . 136 27 . 1 Maximum Alert Level 1 | . 1 . . . Low Security (%) 88 | 100 69 100 . 100 Level 1 11 | . 30 . . . Level 2 . | . . . . . Level 3 . | . . . . . Level 4 . | . . . . . Level 5 . | . . . . . High Security . | . . . . . Max Security . | . . . . . Squads Dispatched 2 | . 2 . . . Investigation 1 | . 1 . . . Extermination . | . . . . . Reinforcement 1 | . 1 . . . Assault . | . . . . . Garrison . | . . . . . Intercept . | . . . . . Construction Impeded . | . . . . . Haulers Reinforced . | . . . . . Stealth | -11 -10 -10 -10 -9 --------- Run | Scr Mat Min Exi Min Distress Signals 6 | . 4 . . 2 Communications Jammed . | . . . . . Distress Signals . | . . . . . Times Spotted 33 | . 20 7 . 6 Peak Tracking Total 7 | . 5 3 . 7 Tactical Retreats 1 | . 1 . . . Traps | -11 -10 -10 -10 -9 ------- Run | Scr Mat Min Exi Min Traps Triggered 1 | . 1 . . . Indirectly . | . . . . . Trap Hack Attempts . | . . . . . Triggered . | . . . . . Disarmed . | . . . . . Reprogrammed . | . . . . . Reused . | . . . . . Traps Extracted . | . . . . . Installed . | . . . . . Triggered . | . . . . . Machines | -11 -10 -10 -10 -9 ---------- Run | Scr Mat Min Exi Min Machines Disabled . | . . . . . Max in Single Turn . | . . . . . Machines Sabotaged . | . . . . . Garrisons Compromised . | . . . . . Overloaded Fab Kills . | . . . . . Fab Network Shutdowns . | . . . . . Hacking | -11 -10 -10 -10 -9 --------- Run | Scr Mat Min Exi Min Machines Accessed 5 | . 3 1 1 . Terminals 4 | . 3 1 . . Fabricators . | . . . . . Repair Stations . | . . . . . Recycling Units . | . . . . . Scanalyzers . | . . . . . Garrison Access . | . . . . . Total Hacks 14 | . 9 4 1 . Successful 8 | . 5 2 1 . Failed 6 | . 4 2 . . Catastrophic 1 | . 1 . . . Database Lockouts . | . . . . . Manual . | . . . . . Terminals 13 | . 9 4 . . Fabricators . | . . . . . Repair Stations . | . . . . . Recycling Units . | . . . . . Scanalyzers . | . . . . . Garrison Access . | . . . . . Terminal Hacks 8 | . 5 2 1 . Record 1 | . . . 1 . Level Access Points 1 | . 1 . . . Branch Access Points 1 | . 1 . . . Alert Level 1 | . 1 . . . Patrol Status 1 | . . 1 . . Zone Layout 3 | . 2 1 . . Fabricator Hacks . | . . . . . Repair Station Hacks . | . . . . . Recycling Unit Hacks . | . . . . . Scanalyzer . | . . . . . Garrison Access Hacks . | . . . . . Unauthorized Hacks . | . . . . . Terminals . | . . . . . Fabricators . | . . . . . Repair Stations . | . . . . . Recycling Units . | . . . . . Scanalyzers . | . . . . . Garrison Access . | . . . . . Data Cores Recovered . | . . . . . Used . | . . . . . Hacking Detections 3 | . 2 1 . . Full Trace Events 1 | . 1 . . . Feedback Events . | . . . . . Feedback Blocked . | . . . . . Robot Schematics Acquired . | . . . . . Robots Built . | . . . . . Matter . | . . . . . Time . | . . . . . Total Robot Build Rating . | . . . . . Part Schematics Acquired . | . . . . . Parts Built . | . . . . . Matter . | . . . . . Time . | . . . . . Total Part Build Rating . | . . . . . Parts Repaired . | . . . . . Time . | . . . . . Parts Recycled . | . . . . . Recycled Matter . | . . . . . Retrieved Matter . | . . . . . Retrieved Components . | . . . . . Parts Scanalyzed . | . . . . . Part Schematics Acquired . | . . . . . Parts Damaged . | . . . . . Bothacking | -11 -10 -10 -10 -9 ------------ Run | Scr Mat Min Exi Min Used RIF Installer . | . . . . . Robots Hacked . | . . . . . Non-combat . | . . . . . Combat . | . . . . . Robot Hacks Applied . | . . . . . Relay Couplers Released . | . . . . . Robots Rewired . | . . . . . Allies Hacked . | . . . . . Hacks Repelled . | . . . . . Allies | -11 -10 -10 -10 -9 -------- Run | Scr Mat Min Exi Min Total Allies 3 | . . 3 . . Largest Group 3 | . . 3 2 2 Highest-Rated Group 40 | . . 40 24 24 Highest-Rated Ally 16 | . . 16 16 16 Total Orders . | . . . . . Ally Attacks 13 | . . 10 . 3 Total Damage 161 | . . 122 . 39 Kills 3 | . . 3 . . Allies Corrupted . | . . . . . Allies Melted . | . . . . . Intel | -11 -10 -10 -10 -9 ------- Run | Scr Mat Min Exi Min Robot Analysis Total . | . . . . . Derelict Logs Recovered 3 | . . 3 . . Drone Launches . | . . . . . Drone Recoveries . | . . . . . Exploration | -11 -10 -10 -10 -9 ------------- Run | Scr Mat Min Exi Min Turns Passed 2581 | 43 629 939 848 122 Spaces Moved 2130 | 34 452 813 760 71 Core 1 | 1 . . . . Treads . | . . . . . Legs . | . . . . . Wheels 2129 | 33 452 813 760 71 Hover . | . . . . . Flight . | . . . . . Fastest Speed 50 | 50 80 100 110 110 Average Speed 104 | 91 85 109 110 110 Slowest Speed 110 | 100 100 110 110 110 Overloaded Moves . | . . . . . Propulsion Burnouts . | . . . . . Robots Hopped . | . . . . . Cave-ins Triggered . | . . . . . Exploration Rate (%) 54 | 4 58 99 93 20 Regions Visited 4 Branch Regions 3 Pre-discovered Areas 2 | . . 2 . . Known Exits Taken 1 | . 1 . . . Unknown Exits Taken 3 | 1 . 1 1 . Scrap Searched 2 | . . 1 . 1 Spaces Dug . | . . . . . Terrain Destroyed 18 | . . . . 18 Melee . | . . . . . Projectile . | . . . . . AOE 18 | . . . . 18 Terrain Rammed . | . . . . . Walls Destroyed . | . . . . . Machines Disabled . | . . . . . Actions | -11 -10 -10 -10 -9 --------- Run | Scr Mat Min Exi Min Total 2374 | 42 603 854 773 102 Wait 123 | . 77 20 10 16 Move 2126 | 33 451 812 759 71 Hop . | . . . . . Pick Up 25 | 2 11 9 2 1 Fast Attach 7 | 6 1 . . . Attach 8 | . 5 . . 3 Detach . | . . . . . Swap 10 | 1 7 1 . 1 Drop 12 | . 5 4 2 1 Fire 62 | . 46 7 . 9 Melee . | . . . . . Ram 1 | . . 1 . . Kick . | . . . . . Crush . | . . . . . Escape Stasis . | . . . . . Rewire . | . . . . . Trap . | . . . . . Miscellaneous . | . . . . . Route ------- -11/Scrapyard -10/Materials (discovered 5 exits: *Mat x3 / *Min x2) -10/Mines (discovered 3 exits: *Mat x2 / *Exi) -10/Exiles (discovered 2 exits: [*Min x2]) -9/Mines (discovered 1 exit: [*Mat]) History --------- Turn | Location | Event 18 | -11/Scrapyard | Discovered new exit (range 16) 44 | -11/Scrapyard | Entered Materials 138 | -10/Materials | Identified exit to Materials 269 | -10/Materials | Identified exit to Mines 304 | -10/Materials | Build established: Mutant 624 | -10/Materials | Lost 4 parts (1p1n2w) 673 | -10/Materials | Entered Mines 708 | -10/Mines | Discovered exit to Materials (range 12) 714 | -10/Mines | Learned location of Zion (-6) 882 | -10/Mines | Assisted by bots powering up and referring to "LRC-V3" 884 | -10/Mines | Learned location of Storage (-9) 959 | -10/Mines | Discovered exit to Materials (range 10) 970 | -10/Mines | Joined a pair of Derelicts in attacking an 0b10 outpost 1009 | -10/Mines | Learned Materials security intel 1157 | -10/Mines | Deemed a non-threat by the Exiles lab entrance 1157 | -10/Mines | Discovered new exit (range 5) 1386 | -10/Mines | Core integrity fell below 50% 1612 | -10/Mines | Entered Exiles 1612 | -10/Exiles | Accompanied by 2 allies 1636 | -10/Exiles | Discovered new exit (range 15) 1646 | -10/Exiles | Met 8R-AWN 1665 | -10/Exiles | Met EX-HEX 1696 | -10/Exiles | Met EX-BIN 1712 | -10/Exiles | Aligned with FarCom system 1713 | -10/Exiles | Given EX-Vault access code 1859 | -10/Exiles | Met EX-DEC 1947 | -10/Exiles | Discovered new exit (range 10) 2102 | -10/Exiles | Visited The Gauntlet 2460 | -10/Exiles | Entered Mines 2460 | -9/Mines | Accompanied by 2 allies 2463 | -9/Mines | Met a Derelict bent on vengeance 2467 | -9/Mines | Received a Rocket Launcher from a helpful Derelict 2550 | -9/Mines | Assembled infested the area 2572 | -9/Mines | Discovered new exit (range 10) 2573 | -9/Mines | Core integrity fell below 20% 2582 | -9/Mines | Destroyed by D-53 Grenadier with Mini Grenade Launcher Last Messages --------------- Mercenary 1a destroyed. The unstable cave ceiling collapses. EXIT=FOUND Lgt. Ion Engine destroyed. U-05 Engineer lays Concrete. U-05 Engineer builds a Wall. D-53 Grenadier suffers critical hit. Destroyed Lgt. Deuterium Engine. as-72518 destroyed. The unstable cave ceiling collapses. Hvy. Assault Rifle destroyed. as-12327 sneak attacks. K-01 Serf destroyed. U-05 Engineer builds a Wall. The unstable cave ceiling collapses. Grenade Launcher destroyed. U-05 Engineer lays Concrete. U-05 Engineer builds a Wall. The unstable cave ceiling collapses. U-05 Engineer builds a Wall. Map ----- +----------------------------------------------------+ | ??????????????????????????????????????? | | ??????????????????????????????????????? | | ??????????????????????????????????????? | | ??????????????????????????????????????? | | ??????????????????????????????????????? | | ??????????????????????????????????????? | | ??????????????????????????????????????? | | ??????????????????????????????????????? | | ??????????????????????????????????????? | | ??????????????????????????????????????? | | ??????????????????????????????????????? | | ??????????#??#????????????????????????? | | ??????????# ?=????#???????????????????? | | ??????????# ? ???[%???????????????????? | | ?????????? ? """%#???????????????????? | | ??????????? ? """a#???????????????????? | | ??????????? < """ #???????????????????? | | ??????????? =%a##??????????????????? | | ???????????# # = #??????????????????? | | ??????????## # ##??????????????????? | | ???????#??# a ???????????????????? | | ???????# ## k ##??????????????????? | | ???????? d ##?????????????????? | | ?????????# #???? ?????????? | | ?????????# # ## ????????? | | ?????????# @ ????????? | | ?????????# ????????? | | ???????#$ #????????? | | ???????# # # ### #####?????????? | | ?????????## #u ##??????????????????? | | ?????????### #u####??????????########## | | ???????????### ##????????????# | | ?????????????# ######????????# #### ### | | ?????????????# #????????# #??? #?? | | ?????????????###### ######???# #??? #?? | | ??????????????????# ##### #??? ##? | | ??????????????????### ## #?## ## | | ????????????????????# ## ######### # | | ????????????????????# ## #????### # | | ????????????????????# ## ###### # | | ????????????????????# ## # | | ????????????????????# ## ##### #? | | ????????????????????# ## #???## ##? | | ????????????????????# ## #????## #?? | | ????????????????????? ? ?????# ##? | | ????????????????????? ? ?????## ## | | ????????????????????? ? ??????## | | ????????????????????? ?###???????# | | ????????????????????? ???????????# | | ?????????????????????#???????????## | +----------------------------------------------------+ Best States ------------- Heat Dissipation 39 Energy Generation 10 Energy Capacity 250 Matter Stores 300 Matter Capacity 300 Sight Range 16 Robot Scan Range 10 Terrain Scan Density 10 Evasion (%) 44 Item Schematics ----------------- None Robot Schematics ------------------ None Fabricated ------------ Nothing Alien Tech Used ----------------- None Achievements -------------- None Challenges ------------ None Game ------ Seed UtilityHeartModule Manual? 0 Play Time 00:35:23 Cumulative 46.6 hours Start 2022.03.10 @ 00:36:45 End 2022.03.10 @ 01:31:29 Sessions 1 Manual Loads 0 Difficulty Rogue Special Mode None Game No. 34 Rogue 24 Adventurer 0 Explorer 10 Win Type - Total 0 Types 0/0/0/0/0/0/0/0/0 Lore% 36 Gallery% 39 Achievement% 26 Wizard Run 0 Options --------- ASCII 0 Keyboard 0 Movement Numpad Keybinds 0 Fullscreen 1 Font 18/SmallcapsGlow Map View 76x50 Tactical HUD 0 Map Filters NONE Filters NONE Steam 1 RUN: a9a31db6-ba7a-4186-87bd-7d8c1485c27d